bitfinex-derivatives/quotes_SOLF0:USTF0_20240904
["timestamp","ask_amount","ask_price","bid_price","bid_amount"]
[1725447495627,0.05063886,128.75,128.72,0.05069106]
[1725447495925,0.05063886,128.75,128.73,11.93]
[1725447496831,3.93443886,128.75,128.73,11.93]
[1725447499729,3.8839,128.74,128.72,0.05069106]
[1725447502832,3.8842,128.73,128.72,0.05069106]
[1725447509742,15.86573702,128.74,128.72,11.98069106]
[1725447509743,3.8841,128.74,128.72,11.98069106]
[1725447510237,3.93433886,128.75,128.72,11.98069106]
[1725447510742,3.93433886,128.75,128.72,15.86509106]
[1725447510948,3.8841,128.74,128.72,11.98069106]
[1725447513055,3.8842,128.73,128.72,0.05069106]
[1725447513252,15.8142,128.73,128.72,0.05069106]
[1725447513948,19.61082729,128.73,128.72,0.05069106]
[1725447514549,3.8841,128.74,128.72,0.05069106]
[1725447514745,0.05063886,128.75,128.72,0.05069106]
[1725447515649,3.93443886,128.75,128.72,11.98069106]
[1725447516049,3.93443886,128.75,128.72,0.05069106]
[1725447517546,3.93443886,128.75,128.72,3.93509106]
[1725447521260,0.05063886,128.75,128.73,3.8842]
[1725447521646,0.05063886,128.75,128.72,0.05069106]
[1725447521860,3.8841,128.74,128.72,0.05069106]
[1725447522257,0.05063886,128.75,128.72,3.93509106]
[1725447522462,0.05063886,128.75,128.72,0.05069106]
[1725447523057,0.05063886,128.75,128.73,3.8841]
[1725447523473,0.05063886,128.75,128.72,29.91069106]
[1725447523659,5.23650141,128.82,128.74,29.86]
[1725447523863,5.23650141,128.82,128.76,29.86]
[1725447524754,0.04907327,128.8,128.78,0.05540235]
[1725447531675,3.93117327,128.8,128.78,0.05540235]
[1725447533471,3.8824,128.79,128.78,0.05540235]
[1725447534865,29.86,128.8,128.73,29.86]
[1725447535268,3.8835,128.76,128.73,33.7442]
[1725447535468,29.86,128.8,128.71,29.86]
[1725447535668,29.86,128.78,128.71,29.86]
[1725447535973,3.8839,128.75,128.73,0.05373995]
[1725447536265,0.05043589,128.76,128.73,0.05373995]
[1725447536470,3.8836,128.75,128.73,0.05373995]
[1725447536772,3.93647643,128.76,128.73,0.05373995]
[1725447537079,3.8839,128.74,128.73,0.05373995]
[1725447546278,3.8839,128.74,128.67,51.71697732]
[1725447546279,11.95,128.74,128.6,7.7764]
[1725447546479,11.95,128.72,128.66,11.95]
[1725447546676,11.95,128.72,128.66,15.8363]
[1725447546877,3.8856,128.69,128.66,11.95]
[1725447547279,3.93925784,128.69,128.66,12.00969999]
[1725447547570,0.05365784,128.69,128.66,0.05969999]
[1725447547979,3.8861,128.67,128.66,0.05969999]
[1725447548175,0.05365784,128.69,128.66,12.00969999]
[1725447548773,3.97809226,128.69,128.66,12.00969999]
[1725447548973,3.97809226,128.69,128.66,0.05969999]
[1725447550282,3.8861,128.67,128.66,0.05969999]
[1725447554284,11.95,128.68,128.54,78.77606772]
[1725447554483,11.95,128.68,128.61,11.95]
[1725447555185,3.887,128.64,128.61,15.8377]
[1725447555378,3.94619739,128.64,128.62,11.95]
[1725447556188,0.05919739,128.64,128.63,11.95]
[1725447556777,0.05919739,128.64,128.63,15.8373]
[1725447556982,0.05919739,128.64,128.61,0.05893033]
[1725447557181,0.05919739,128.64,128.62,11.95]
[1725447557388,0.05919739,128.64,128.62,15.8374]
[1725447557586,0.05919739,128.64,128.62,11.95]
[1725447557988,0.05919739,128.64,128.62,33.7376]
[1725447558590,0.05919739,128.64,128.63,3.8873]
[1725447563195,0.05919739,128.64,128.62,33.7374]
[1725447565189,0.05919739,128.64,128.62,3.8874]
[1725447565390,3.94619739,128.64,128.62,3.8874]
[1725447565590,0.05919739,128.64,128.62,3.8874]
[1725447567399,3.94619739,128.64,128.61,3.94663033]
[1725447567694,0.05919739,128.64,128.61,3.94663033]
[1725447568093,3.94629739,128.64,128.61,3.94663033]
[1725447570692,3.8873,128.63,128.61,3.94663033]
[1725447573198,3.8876,128.62,128.61,0.05893033]
[1725447574504,0.05919739,128.64,128.61,0.05893033]
[1725447575596,3.8874,128.63,128.61,0.05893033]
[1725447577702,3.8876,128.62,128.61,0.05893033]
[1725447586212,3.8876,128.62,128.58,15.8386]
[1725447586213,11.95,128.62,128.56,3.8892]
[1725447586415,15.81862165,128.61,128.54,15.77934038]
[1725447586613,11.95,128.6,128.54,3.82934038]
[1725447586815,11.95,128.6,128.54,11.95]
[1725447587010,3.8893,128.57,128.54,19.75247]
[1725447587212,3.8893,128.57,128.54,15.9131351]
[1725447587416,3.9446881,128.57,128.54,15.9131351]
[1725447588113,0.0553881,128.57,128.56,11.95]
[1725447588424,0.0553881,128.57,128.56,15.8394]
[1725447591615,11.70629433,128.62,128.59,3.8883]
[1725447591816,7.77,128.64,128.59,11.95]
[1725447592016,16.2109,128.65,128.59,11.95]
[1725447592416,3.8876,128.62,128.59,15.8383]
[1725447592614,3.8876,128.62,128.59,11.95]
[1725447592817,3.94260833,128.62,128.59,12.00166248]
[1725447593018,0.05500833,128.62,128.6,3.888]
[1725447593425,0.05500833,128.62,128.61,3.8879]
[1725447596127,0.05500833,128.62,128.6,3.888]
[1725447597129,0.05500833,128.62,128.61,3.8879]
[1725447597725,0.05500833,128.62,128.61,15.8379]
[1725447600325,7.77,128.7,128.61,15.81814469]
[1725447600549,3.84411947,128.73,128.67,11.95]
[1725447600550,4.1069,128.71,128.67,11.95]
[1725447600737,4.1069,128.71,128.6,52.0359]
[1725447600929,16.0569,128.71,128.66,11.95]
[1725447601238,16.0569,128.71,128.6,52.0359]
[1725447601239,16.0569,128.71,128.64,11.95]
[1725447601538,16.0569,128.71,128.66,12.00667784]
[1725447601539,3.94510448,128.69,128.66,12.00667784]
[1725447601833,0.05950448,128.69,128.66,12.00667784]
[1725447602035,0.05950448,128.69,128.67,3.8859]
[1725447602227,0.05950448,128.69,128.66,0.05667784]
[1725447604335,0.05950448,128.69,128.67,29.83]
[1725447605849,7.77,128.82,128.68,29.83]
[1725447606048,7.77,128.78,128.72,29.83]
[1725447606239,7.77,128.78,128.67,4.1917]
[1725447606240,3.84902048,128.77,128.7,29.83]
[1725447606430,7.77,128.77,128.7,29.83]
[1725447606834,0.05366217,128.75,128.72,0.05457032]
[1725447607036,0.05366217,128.75,128.72,29.88457032]
[1725447607636,0.05366217,128.75,128.74,29.83]
[1725447613254,0.05366217,128.75,128.72,0.05457032]
[1725447614939,1.50506217,128.75,128.72,0.05457032]
[1725447615649,0.05366217,128.75,128.72,0.05457032]
[1725447621649,0.05366217,128.75,128.72,29.88457032]
[1725447622854,0.05366217,128.75,128.74,29.83]
[1725447625061,0.05366217,128.75,128.72,0.05457032]
[1725447628261,0.05366217,128.75,128.72,29.88457032]
[1725447628460,0.05366217,128.75,128.73,29.83]
[1725447629056,0.65308535,128.78,128.73,29.83]
[1725447629256,0.65308535,128.78,128.76,29.83]
[1725447630171,0.70554877,128.78,128.76,29.88038184]
[1725447632860,0.70554877,128.78,128.77,3.93878185]
[1725447633254,0.70554877,128.78,128.76,29.88038184]
[1725447633564,1.3962,128.84,128.76,29.88038184]
[1725447633759,0.6536477,128.83,128.79,29.83]
[1725447634265,0.6536477,128.83,128.77,29.83]
[1725447634458,0.6536477,128.83,128.74,1.3675]
[1725447634658,0.05956275,128.8,128.77,0.05085969]
[1725447634959,4.04007572,128.8,128.77,0.05085969]
[1725447635357,0.05956275,128.8,128.77,0.05085969]
[1725447640458,0.05956275,128.8,128.7,3.85538891]
[1725447640659,29.83,128.78,128.7,3.85538891]
[1725447640862,1.3255,128.77,128.7,3.85538891]
[1725447641072,1.3255,128.77,128.69,31.1975]
[1725447641464,0.0499928,128.74,128.72,0.05833351]
[1725447649174,0.0499928,128.74,128.73,29.83]
[1725447658676,2.8222,128.8,128.73,29.83]
[1725447658883,2.8222,128.8,128.75,29.83]
[1725447659978,0.05242412,128.79,128.76,0.05736566]
[1725447660582,29.88242412,128.79,128.76,0.05736566]
[1725447660784,0.60334876,128.78,128.76,0.05736566]
[1725447660972,7.82242412,128.79,128.76,0.05736566]
[1725447662783,7.82242412,128.79,128.77,3.84313573]
[1725447662990,7.82242412,128.79,128.76,29.88736566]
[1725447663778,0.05242412,128.79,128.76,29.88736566]
[1725447665677,0.05242412,128.79,128.76,0.05736566]
[1725447665877,1.40242412,128.79,128.76,0.05736566]
[1725447668786,0.05242412,128.79,128.76,29.88736566]
[1725447670484,0.05242412,128.79,128.76,0.05736566]
[1725447673992,0.05242412,128.79,128.78,11.94]
[1725447675093,4.1457,128.86,128.78,11.94]
[1725447675094,0.6032683,128.85,128.78,11.94]
[1725447675297,0.60323635,128.84,128.81,11.94]
[1725447675511,0.60323635,128.83,128.81,11.94]
[1725447675696,4.1457,128.86,128.81,11.94]
[1725447675992,8.37719132,128.85,128.79,29.82]
[1725447676197,8.37719132,128.85,128.81,0.05061274]
[1725447676198,0.0578017,128.83,128.81,0.05061274]
[1725447676592,0.66078672,128.83,128.81,0.05061274]
[1725447676903,0.66078672,128.83,128.76,29.82]
[1725447677603,37.594,128.82,128.74,29.82]
[1725447677805,0.05986379,128.79,128.77,0.05908405]
[1725447678497,0.05986379,128.79,128.77,33.74229672]
[1725447679003,0.05986379,128.79,128.77,29.87908405]
[1725447679208,0.05986379,128.79,128.77,33.77841603]
[1725447680712,0.05986379,128.79,128.77,29.87908405]
[1725447680914,0.05986379,128.79,128.77,33.81337521]
[1725447682205,0.60258607,128.84,128.78,29.82]
[1725447682411,0.60258607,128.84,128.8,29.82]
[1725447682713,0.60258607,128.84,128.78,29.82]
[1725447683416,0.0544402,128.82,128.8,0.05485053]
[1725447685916,0.0544402,128.82,128.8,29.87485053]
[1725447687514,0.60300108,128.86,128.8,59.69485053]
[1725447687716,0.60300108,128.86,128.83,29.82]
[1725447688406,0.60300108,128.86,128.8,29.82]
[1725447688612,0.05878553,128.84,128.82,0.05557327]
[1725447689016,0.6617417,128.84,128.82,29.87557327]
[1725447689212,0.05878553,128.84,128.82,29.87557327]
[1725447689812,0.60297383,128.88,128.82,29.87557327]
[1725447690013,0.60297383,128.88,128.85,29.82]
[1725447690416,227.0,128.92,128.86,29.82]
[1725447690721,0.60277575,128.91,128.88,23.86]
[1725447690911,0.05288246,128.91,128.9,23.86]
[1725447694218,11.57113584,128.97,128.9,23.86]
[1725447694524,2.7239,128.98,128.95,23.86]
[1725447694828,1.3765,128.98,128.95,23.86]
[1725447695018,1.3765,128.98,128.93,23.86]
[1725447695217,0.04927183,128.97,128.94,0.05305581]
[1725447695517,0.04927183,128.97,128.95,23.86]
[1725447696518,0.04927183,128.97,128.96,23.86]
[1725447697323,2.7613,129.03,128.96,23.86]
[1725447697517,2.7613,129.03,128.99,23.86]
[1725447697717,1.4214,129.03,128.99,23.86]
[1725447698214,1.3359,129.06,129.0,0.05179977]
[1725447698411,0.05151934,129.02,129.0,0.05179977]
[1725447698623,0.05151934,129.02,129.01,23.86]
[1725447700320,0.05151934,129.02,129.0,0.05179977]
[1725447709332,0.05151934,129.02,129.01,23.86]
[1725447714328,0.05151934,129.02,129.0,0.05179977]
[1725447718836,1.40491934,129.02,128.96,23.86]
[1725447719735,1.40491934,129.02,128.98,0.05436954]
[1725447720635,23.86,129.0,128.92,23.86]
[1725447721029,0.60278318,128.99,128.92,23.86]
[1725447721625,0.60278318,128.99,128.94,0.05813861]
[1725447721826,0.05736374,128.97,128.94,0.05813861]
[1725447722034,3.87146223,128.97,128.94,0.05813861]
[1725447722536,0.05736374,128.97,128.94,23.91813861]
[1725447727039,0.05736374,128.97,128.96,23.86]
[1725447727342,1.3534,129.02,128.96,23.86]
[1725447727530,1.3534,129.02,128.98,23.86]
[1725447728163,0.05234407,129.01,129.0,23.86]
[1725447728633,0.05234407,129.01,128.99,0.05748661]
[1725447737247,0.05234407,129.01,128.99,23.91748661]
[1725447739035,0.05234407,129.01,128.99,0.05748661]
[1725447741643,0.65525243,129.01,128.99,0.05748661]
[1725447741844,0.05234407,129.01,128.99,0.05748661]
[1725447743841,0.05234407,129.01,129.0,23.86]
[1725447745045,0.60293052,129.04,129.0,23.86]
[1725447745349,0.60293052,129.03,129.0,23.86]
[1725447745550,12.0149,129.09,129.03,23.86]
[1725447745739,0.60294367,129.08,129.03,23.86]
[1725447746047,0.04798084,129.07,129.04,0.05114566]
[1725447755154,0.6512204,129.07,129.04,0.05114566]
[1725447755353,0.60323956,129.06,129.04,0.05114566]
[1725447755552,0.60323956,129.05,129.04,0.05114566]
[1725447756670,0.04798084,129.07,129.04,0.05114566]
[1725447757063,0.04798084,129.07,129.04,23.86114566]
[1725447757558,0.04798084,129.07,129.04,0.05114566]
[1725447763659,0.65197907,129.07,129.04,0.05114566]
[1725447763864,0.04798084,129.07,129.06,23.81]
[1725447767264,0.04798084,129.07,129.04,0.05114566]
[1725447768866,0.04798084,129.07,129.05,23.81]
[1725447769667,0.04798084,129.07,129.06,23.81]
[1725447769862,0.60394593,129.1,129.06,23.81]
[1725447770067,13.76638297,129.13,129.09,23.81]
[1725447770361,13.76638297,129.13,129.07,6.83240162]
[1725447770362,11.5734033,129.15,129.12,23.81]
[1725447770566,0.60389189,129.14,129.12,23.81]
[1725447770962,33.3707188,129.18,129.12,23.81]
[1725447770963,7.774,129.17,129.12,23.86704699]
[1725447771264,0.60386713,129.16,129.12,23.86704699]
[1725447772064,11.74277383,129.17,129.12,23.86704699]
[1725447772365,0.60390978,129.16,129.12,23.86704699]
[1725447775477,243.61538297,129.19,129.13,23.81]
[1725447775478,7.774,129.18,129.13,23.81]
[1725447775668,0.60368509,129.17,129.14,0.05625371]
[1725447776369,7.774,129.18,129.14,0.05625371]
[1725447780169,32.18755444,129.17,129.07,4.3015]
[1725447780473,0.60355444,129.16,129.11,23.81]
[1725447780673,4.5256331,129.15,129.11,23.81]
[1725447780874,7.774,129.17,129.11,23.81]
[1725447781074,0.60352783,129.16,129.11,23.81]
[1725447781262,3.86676718,129.15,129.12,0.05438755]
[1725447781761,23.81,129.13,128.94,3.94764083]
[1725447781970,2.0546754,129.12,129.04,23.81]
[1725447782171,24.4133754,129.11,129.04,23.81]
[1725447782474,0.6033754,129.1,129.04,23.81]
[1725447782671,0.05172884,129.08,129.06,0.05463579]
[1725447788372,0.05172884,129.08,129.07,23.81]
[1725447789072,8.37798704,129.13,129.07,23.81]
[1725447789266,7.774,129.13,129.09,23.81]
[1725447790277,0.05891242,129.12,129.1,0.05634395]
[1725447790977,0.05891242,129.12,129.1,23.86634395]
[1725447792177,227.0,129.16,129.1,23.86634395]
[1725447792378,1.4491,129.18,129.13,23.81]
[1725447792579,0.60428072,129.17,129.13,23.81]
[1725447793181,7.774,129.2,129.13,23.81]
[1725447793484,6.67856196,129.2,129.15,0.05360815]
[1725447794282,5.58312392,129.22,129.15,0.05360815]
[1725447794474,0.5578955,129.21,129.17,0.05418988]
[1725447795081,0.5578955,129.2,129.17,0.05418988]
[1725447795287,4.1356,129.23,129.17,0.05418988]
[1725447795583,0.55744425,129.22,129.17,0.05418988]
[1725447795977,8.33144425,129.22,129.17,0.05418988]
[1725447796176,0.55744425,129.21,129.17,0.05418988]
[1725447797685,0.55743118,129.2,129.17,0.05418988]
[1725447797981,7.774,129.22,129.17,0.05418988]
[1725447798180,0.55745183,129.21,129.17,0.05418988]
[1725447801094,7.774,129.2,129.17,0.05418988]
[1725447801289,23.81,129.18,129.08,3.79387834]
[1725447801494,23.81,129.18,129.09,23.81]
[1725447801495,3.37931612,129.17,129.09,23.81]
[1725447801684,2.8217,129.17,129.1,27.64548536]
[1725447801890,3.84981566,129.18,129.12,23.81]
[1725447802082,7.774,129.21,129.12,23.81]
[1725447802288,0.05418988,129.18,129.15,0.05572961]
[1725447802492,3.96894592,129.17,129.15,0.05572961]
[1725447803692,0.05418988,129.18,129.15,0.05572961]
[1725447803997,23.86418988,129.18,129.15,0.05572961]
[1725447804292,0.55767645,129.17,129.15,0.05572961]
[1725447804493,0.55767645,129.17,129.09,23.81]
[1725447804494,1.93137645,129.17,129.09,23.81]
[1725447804790,0.55767645,129.16,129.09,23.81]
[1725447805398,0.05016435,129.14,129.11,0.0590455]
[1725447806586,23.81,129.12,129.02,4.2148]
[1725447806894,31.584,129.12,129.04,23.81]
[1725447807085,23.81,129.11,129.04,23.81]
[1725447807290,27.74421664,129.11,129.02,25.2451]
[1725447807685,0.0549163,129.08,129.05,0.05386342]
[1725447817092,29.76,129.07,129.05,0.05386342]
[1725447817295,29.76,129.07,128.99,73.50748314]
[1725447817999,29.76,129.07,128.97,29.76]
[1725447818305,0.05023807,129.03,129.01,0.05715871]
[1725447820897,7.82423807,129.03,129.01,0.05715871]
[1725447824105,0.05023807,129.03,129.01,0.05715871]
[1725447824296,7.82423807,129.03,129.01,0.05715871]
[1725447824494,0.05023807,129.03,129.01,0.05715871]
[1725447832111,23.88023807,129.03,129.01,0.05715871]
[1725447832402,31.65423807,129.03,129.01,0.05715871]
[1725447836813,32.16304471,129.02,128.94,26.6179]
[1725447837110,31.604,129.02,128.94,26.6179]
[1725447837802,0.04971157,128.99,128.97,0.05770988]
[1725447842498,7.82371157,128.99,128.97,0.05770988]
[1725447842704,31.604,128.98,128.97,0.05770988]
[1725447842905,32.16336828,128.98,128.97,0.05770988]
[1725447843104,7.774,128.96,128.89,4.0922]
[1725447843909,11.64142688,128.96,128.89,4.0922]
[1725447844214,0.05329979,128.94,128.91,0.05870901]
[1725447846413,7.82729979,128.94,128.91,0.05870901]
[1725447847614,7.82729979,128.94,128.91,23.88870901]
[1725447847615,0.05329979,128.94,128.91,23.88870901]
[1725447850312,7.774,128.98,128.91,23.88870901]
[1725447851316,0.04949187,128.96,128.91,23.88870901]
[1725447852008,7.82349187,128.96,128.91,23.88870901]
[1725447853113,7.82349187,128.96,128.91,0.05870901]
[1725447853513,0.04949187,128.96,128.91,0.05870901]
[1725447853711,0.04949187,128.96,128.91,23.88870901]
[1725447854517,0.04949187,128.96,128.93,23.83]
[1725447855421,0.04949187,128.96,128.91,0.05870901]
[1725447859720,0.04949187,128.96,128.89,23.53100901]
[1725447860815,0.04949187,128.96,128.91,0.04958529]
[1725447864118,23.83,128.95,128.91,0.04958529]
[1725447864321,31.604,128.95,128.91,0.04958529]
[1725447864623,23.83,128.93,128.91,0.04958529]
[1725447864833,23.8801637,128.93,128.91,0.04958529]
[1725447865623,7.774,128.92,128.91,0.04958529]
[1725447865926,31.604,128.92,128.91,0.04958529]
[1725447869020,31.604,128.92,128.85,110.17489764]
[1725447870220,0.05965403,128.9,128.87,0.05470268]
[1725447870415,23.88965403,128.9,128.87,0.05470268]
[1725447870631,0.05965403,128.9,128.87,0.05470268]
[1725447870927,31.604,128.89,128.87,0.05470268]
[1725447871340,7.774,128.89,128.87,0.05470268]
[1725447871528,23.83,128.88,128.87,0.05470268]
[1725447877735,11.56844185,128.89,128.87,0.05470268]
[1725447878729,35.39844185,128.89,128.87,0.05470268]
[1725447882024,9.54,128.88,128.87,0.05470268]
[1725447882728,9.54,128.88,128.8,9.54]
[1725447883036,9.54,128.84,128.78,12.3801]
[1725447883226,9.54,128.83,128.78,2.8401]
[1725447883833,0.0561116,128.82,128.79,0.05889083]
[1725447886235,23.9161116,128.82,128.79,0.05889083]
[1725447886837,3.81660035,128.81,128.79,0.05889083]
[1725447887731,7.774,128.8,128.79,0.05889083]
[1725447887933,31.634,128.8,128.79,0.05889083]
[1725447890538,31.634,128.8,128.7,28.0611]
[1725447890740,31.634,128.78,128.71,3.86713286]
[1725447891631,0.05566048,128.76,128.73,0.05195349]
[1725447894039,23.91566048,128.76,128.73,0.05195349]
[1725447897936,23.86,128.74,128.73,0.05195349]
[1725447898143,31.634,128.74,128.73,0.05195349]
[1725447901632,7.774,128.74,128.73,0.05195349]
[1725447904135,17.334,128.74,128.73,0.05195349]
[1725447904341,21.17901371,128.74,128.73,0.05195349]
[1725447905639,0.05566048,128.76,128.73,0.05195349]
[1725447906145,9.56,128.74,128.73,0.05195349]
[1725447916748,0.05566048,128.76,128.73,0.05195349]
[1725447916749,17.38966048,128.76,128.73,0.05195349]
[1725447916951,9.56,128.74,128.73,0.05195349]
[1725447919352,9.61566048,128.76,128.73,0.05195349]
[1725447919656,0.05566048,128.76,128.73,0.05195349]
[1725447920956,0.05566048,128.76,128.73,9.61195349]
[1725447921155,0.05566048,128.76,128.74,9.56]
[1725447921355,0.05566048,128.76,128.74,10.9326]
[1725447921555,0.05566048,128.76,128.74,1.3726]
[1725447921953,0.05566048,128.76,128.73,0.05195349]
[1725447921954,9.61566048,128.76,128.73,0.05195349]
[1725447923462,9.56,128.75,128.73,0.05195349]
[1725447923659,0.05566048,128.76,128.73,0.05195349]
[1725447923660,9.56,128.74,128.73,0.05195349]
[1725447924754,9.56,128.75,128.73,0.05195349]
[1725447924960,9.61566048,128.76,128.73,0.05195349]
[1725447925953,0.05566048,128.76,128.73,0.05195349]
[1725447926159,9.61566048,128.76,128.73,0.05195349]
[1725447926966,9.56,128.75,128.73,0.05195349]
[1725447930085,0.05566048,128.76,128.73,0.05195349]
[1725447930269,9.61566048,128.76,128.73,0.05195349]
[1725447932985,0.05566048,128.76,128.73,0.05195349]
[1725447936389,0.05566048,128.76,128.73,9.61195349]
[1725447936579,10.9096,128.84,128.75,9.56]
[1725447936784,0.55894429,128.83,128.78,9.56]
[1725447937090,10.9096,128.84,128.79,9.56]
[1725447937284,3.87861361,128.83,128.78,9.56]
[1725447937882,0.05569894,128.82,128.79,0.04893572]
[1725447942193,0.05569894,128.82,128.79,9.60893572]
[1725447942496,0.05569894,128.82,128.81,9.56]
[1725447947190,0.05569894,128.82,128.79,0.04893572]
[1725447948098,9.56,128.81,128.79,0.04893572]
[1725447948288,9.56,128.8,128.79,0.04893572]
[1725447949407,9.56,128.81,128.79,0.04893572]
[1725447949895,28.11499894,128.82,128.79,0.04893572]
[1725447953001,23.87,128.8,128.72,23.87]
[1725447953900,0.05138113,128.77,128.72,23.87]
[1725447954109,0.05138113,128.77,128.75,0.05563912]
[1725447962012,0.05138113,128.77,128.76,3.82855589]
[1725447963007,0.05138113,128.77,128.75,0.05563912]
[1725447966111,0.05138113,128.77,128.76,23.87]
[1725447968311,0.05138113,128.77,128.75,0.05563912]
[1725447972418,0.05138113,128.77,128.76,23.87]
[1725447974415,1.3248,128.82,128.76,23.87]
[1725447974614,34.3845,128.86,128.78,23.87]
[1725447974814,9.78981972,128.85,128.78,27.71331546]
[1725447975015,0.55821972,128.84,128.78,27.71331546]
[1725447975314,1.4596,128.85,128.8,23.87]
[1725447975518,0.05456324,128.84,128.81,0.05743169]
[1725447976422,11.6539539,128.84,128.81,0.05743169]
[1725447976919,7.82656324,128.84,128.81,0.05743169]
[1725447977118,11.63092002,128.84,128.81,0.05743169]
[1725447977422,0.05456324,128.84,128.81,0.05743169]
[1725447977721,0.05456324,128.84,128.81,23.92743169]
[1725447978619,0.05456324,128.84,128.83,23.87]
[1725447980318,0.05456324,128.84,128.83,23.87]
[1725447980827,11.8916,128.9,128.83,23.87]
[1725447980828,4.1196,128.9,128.83,23.87]
[1725447981125,4.1196,128.9,128.85,23.87]
[1725447981718,0.05828839,128.89,128.86,0.05398779]
[1725447982626,0.05828839,128.89,128.88,23.87]
[1725447982822,0.55765786,128.94,128.88,23.87]
[1725447983020,4.3026,128.99,128.92,23.87]
[1725447983223,0.55756259,128.98,128.92,23.87]
[1725447983615,0.55756259,128.98,128.9,23.87]
[1725447983822,0.04953259,128.95,128.93,0.05621585]
[1725447992527,23.91953259,128.95,128.93,0.05621585]
[1725447992726,23.91953259,128.95,128.8,23.87]
[1725447992727,2.8082,128.94,128.84,23.87]
[1725447992926,23.87,128.92,128.84,23.87]
[1725447993121,27.71388217,128.92,128.85,3.89587371]
[1725447993322,27.71388217,128.92,128.84,23.87]
[1725447993629,0.05122249,128.89,128.87,0.04949695]
[1725447993824,23.92122249,128.89,128.87,0.04949695]
[1725447994325,23.87,128.86,128.79,23.87]
[1725447995122,3.8524181,128.87,128.79,23.87]
[1725447995328,0.05745907,128.84,128.81,0.05857232]
[1725447997130,23.87,128.83,128.81,0.05857232]
[1725447997328,1.4238,128.82,128.81,0.05857232]
[1725448001835,0.05745907,128.84,128.81,0.05857232]
[1725448002328,1.51325907,128.84,128.81,0.05857232]
[1725448009836,0.05745907,128.84,128.81,0.05857232]
[1725448010242,0.05745907,128.84,128.82,23.87]
[1725448013834,0.05745907,128.84,128.81,0.05857232]
[1725448020347,0.05745907,128.84,128.81,23.92857232]
[1725448021844,0.05745907,128.84,128.83,23.87]
[1725448022049,11.7443581,128.91,128.83,27.69094883]
[1725448022358,11.7443581,128.91,128.8,23.87]
[1725448022359,27.9806,128.94,128.86,23.87]
[1725448022651,4.42951721,128.93,128.86,23.87]
[1725448022849,11.64264213,128.93,128.86,23.87]
[1725448023248,0.05790728,128.91,128.88,0.04967039]
[1725448023651,0.05790728,128.91,128.9,23.87]
[1725448024352,0.05790728,128.91,128.9,27.75617128]
[1725448024950,11.9767,128.99,128.91,23.87]
[1725448025853,0.05233971,128.96,128.94,0.05715546]
[1725448030353,0.05233971,128.96,128.94,23.92715546]
[1725448033755,0.05233971,128.96,128.94,0.05715546]
[1725448041951,0.05233971,128.96,128.95,23.87]
[1725448042157,0.55917928,129.02,128.95,23.87]
[1725448042356,7.772,129.06,129.0,23.87]
[1725448042551,0.55911122,129.05,129.0,23.87]
[1725448042759,227.0,129.15,129.02,23.87]
[1725448042952,26.6626,129.12,129.02,23.87]
[1725448043163,0.05142626,129.08,129.06,0.05408593]
[1725448045462,3.99492575,129.08,129.06,0.05408593]
[1725448045658,0.05142626,129.08,129.06,0.05408593]
[1725448046264,3.84388485,129.07,129.06,0.05408593]
[1725448048762,0.05142626,129.08,129.06,0.05408593]
[1725448048968,23.92142626,129.08,128.98,23.87]
[1725448049172,0.55941686,129.07,129.0,23.87]
[1725448049762,0.55941686,129.07,129.0,27.68016316]
[1725448049965,0.05321978,129.05,129.02,0.05127994]
[1725448054669,0.30483664,129.07,129.02,0.05127994]
[1725448055879,0.57320539,129.06,129.02,0.05127994]
[1725448056177,0.05685485,129.06,129.02,0.05127994]
[1725448058772,0.05685485,129.06,129.02,23.92127994]
[1725448062780,0.05685485,129.06,129.04,23.87]
[1725448064274,0.05685485,129.06,129.05,23.87]
[1725448064982,0.05685485,129.06,129.05,27.66341085]
[1725448065375,0.05685485,129.06,129.05,23.87]
[1725448065775,0.05685485,129.06,129.04,23.87]
[1725448069709,0.05685485,129.06,129.03,3.87829457]
[1725448070792,0.05685485,129.06,129.02,0.05127994]
[1725448071191,0.57279119,129.06,129.02,0.05127994]
[1725448071385,0.05685485,129.06,129.02,0.05127994]
[1725448072392,0.05685485,129.06,129.04,23.87]